fUSD/lending_fUSD_20250120
["ID","MTS","AMOUNT","RATE_DAILY","PERIOD"]
[349675128,1737369046354,-500.0,0.00020856,2]
[349675130,1737369046363,-226.658262,0.00020856,2]
[349675132,1737369046373,-226.658262,0.00020856,2]
[349675134,1737369046382,-500.0,0.00020856,2]
[349675136,1737369046391,-504.72,0.00020856,2]
[349675138,1737369046401,-500.0,0.00020856,2]
[349675140,1737369046410,-500.0,0.00020856,2]
[349675142,1737369046419,-770.52,0.00020856,2]
[349675144,1737369046428,-151.0,0.00020856,2]
[349675146,1737369046438,-648.29,0.00020856,2]
[349675148,1737369046451,-500.0,0.00020856,2]
[349675150,1737369046462,-500.0,0.00020856,2]
[349675152,1737369046471,-500.0,0.00020856,2]
[349675154,1737369046481,-632.43,0.00020856,2]
[349675156,1737369046491,-500.0,0.00020856,2]
[349675158,1737369046500,-500.0,0.00020856,2]
[349675160,1737369046509,-500.0,0.00020856,2]
[349675162,1737369046519,-500.0,0.00020856,2]
[349675164,1737369046528,-500.0,0.00020856,2]
[349675166,1737369046537,-500.0,0.00020856,2]
[349675168,1737369046546,-559.16,0.00020856,2]
[349675170,1737369046555,-151.0,0.00020856,2]
[349675172,1737369046564,-500.0,0.00020856,2]
[349675174,1737369046574,-524.14570629,0.00020856,2]
[349675176,1737369046583,-500.0,0.00020856,2]
[349675178,1737369046592,-151.0,0.00020856,2]
[349675180,1737369046601,-500.0,0.00020856,2]
[349675182,1737369046611,-500.0,0.00020856,2]
[349675184,1737369046620,-500.0,0.00020856,2]
[349675186,1737369046629,-500.0,0.00020856,2]
[349675188,1737369046639,-1001.74,0.00020856,2]
[349675190,1737369046649,-236.15564454,0.00020856,2]
[349675192,1737369046658,-500.0,0.00020856,2]
[349675194,1737369046667,-477.956817,0.00020856,2]
[349675196,1737369046677,-188.44186872,0.00020856,2]
[349675198,1737369046687,-1317.41,0.00020856,2]
[349675199,1737369046697,-477.956817,0.00020856,2]
[349675201,1737369046706,-1515.52,0.00020856,2]
[349675203,1737369046715,-500.0,0.00020856,2]
[349675205,1737369046724,-151.0,0.00020856,2]
[349675207,1737369046734,-589.13,0.00020856,2]
[349675209,1737369046743,-500.0,0.00020856,2]
[349675211,1737369046753,-226.0723368,0.00020856,2]
[349675213,1737369046767,-564.81,0.00020856,2]
[349675215,1737369046776,-500.0,0.00020856,2]
[349675217,1737369046786,-1000.0,0.00020856,2]
[349675219,1737369046795,-500.0,0.00020856,2]
[349675221,1737369046804,-500.0,0.00020856,2]
[349675223,1737369046814,-151.0,0.00020856,2]
[349675225,1737369046823,-500.0,0.00020856,2]
[349675227,1737369046833,-500.0,0.00020856,2]
[349675229,1737369046844,-500.0,0.00020856,2]
[349675231,1737369046855,-500.0,0.00020856,2]
[349675233,1737369046864,-500.0,0.00020856,2]
[349675235,1737369046874,-500.0,0.00020856,2]
[349675237,1737369046883,-822.913357,0.00020856,2]
[349675239,1737369046892,-500.0,0.00020856,2]
[349675241,1737369046904,-500.0,0.00020856,2]
[349675244,1737369046915,-2030.33,0.00020856,2]
[349675245,1737369046923,-500.0,0.00020856,2]
[349675247,1737369046933,-219.97213749,0.00020856,2]
[349675249,1737369046944,-500.0,0.00020856,2]
[349675251,1737369046954,-651.66,0.00020856,2]
[349675253,1737369046963,-500.0,0.00020856,2]
[349675255,1737369046972,-1063.06,0.00020856,2]
[349675257,1737369046982,-500.0,0.00020856,2]
[349675259,1737369046991,-151.0,0.00020856,2]
[349675261,1737369047000,-511.73,0.00020856,2]
[349675263,1737369047009,-500.0,0.00020856,2]
[349675265,1737369047019,-500.0,0.00020856,2]
[349675267,1737369047029,-500.0,0.00020856,2]
[349675269,1737369047038,-500.0,0.00020856,2]
[349675271,1737369047048,-500.0,0.00020856,2]
[349675273,1737369047057,-500.0,0.00020856,2]
[349675275,1737369047067,-640.6929779,0.00020856,2]
[349675277,1737369047077,-500.0,0.00020856,2]
[349675279,1737369047086,-243.70803526,0.00020856,2]
[349675281,1737369047096,-500.0,0.00020856,2]
[349675283,1737369047106,-500.0,0.00020856,2]
[349675285,1737369047115,-500.0,0.00020856,2]
[349675286,1737369047125,-500.0,0.00020856,2]
[349675287,1737369047134,-196.365606,0.00020856,2]
[349675288,1737369047143,-500.0,0.00020856,2]
[349675289,1737369047153,-500.0,0.00020856,2]
[349675290,1737369047163,-500.0,0.00020856,2]
[349675291,1737369047173,-500.0,0.00020856,2]
[349675292,1737369047186,-500.0,0.00020856,2]
[349675293,1737369047195,-500.0,0.00020856,2]
[349675294,1737369047205,-500.0,0.00020856,2]
[349675295,1737369047216,-500.0,0.00020856,2]
[349675296,1737369047225,-500.0,0.00020856,2]
[349675297,1737369047234,-500.0,0.00020856,2]
[349675298,1737369047244,-500.0,0.00020856,2]
[349675299,1737369047254,-500.0,0.00020856,2]
[349675300,1737369047265,-640.34,0.00020856,2]
[349675301,1737369047275,-410.72939146,0.00020856,2]
[349675302,1737369047284,-838.81,0.00020856,2]
[349675303,1737369047293,-500.0,0.00020856,2]
[349675304,1737369047303,-151.0,0.00020856,2]
[349675305,1737369047313,-500.0,0.00020856,2]
[349675306,1737369047322,-928.97,0.00020856,2]
[349675307,1737369047331,-1338.34440375,0.00020857,2]
[349675308,1737369047340,-2324.6148033,0.00020857,2]
[349675309,1737369047349,-304.88944858,0.00020858,2]
[349675310,1737369047359,-396.63325434,0.00020858,2]
[349675311,1737369047369,-150.0,0.00020859,2]
[349675312,1737369047378,-313.37092882,0.00020861,2]
[349675313,1737369047387,-150.0,0.00020861,2]
[349675314,1737369047397,-369.83128676,0.00020863,2]
[349675315,1737369047406,-200.0,0.00020863,2]
[349675316,1737369047416,-67139.45850816,0.00020864,2]
[349675317,1737369047426,-264.30585827,0.00020866,2]
[349675318,1737369047436,-67139.45850816,0.00020866,2]
[349675319,1737369047448,-150.0,0.00020866,2]
[349675320,1737369047457,-150.0,0.00020866,2]
[349675321,1737369047466,-456.10525869,0.00020869,2]
[349675322,1737369047475,-2745.62856594,0.00020871,2]
[349675323,1737369047486,-1954.32870542,0.00020872,2]
[349675324,1737369047495,-902.1833062,0.00020872,2]
[349675325,1737369047505,-304.88944858,0.00020874,2]
[349675326,1737369047631,-396.63325434,0.00020875,2]
[349675327,1737369047641,-1000.0,0.00020876,2]
[349675328,1737369047650,-150.0,0.00020878,2]
[349675329,1737369047661,-479.91455729,0.00020878,2]
[349675330,1737369047670,-568.07150265,0.00020881,2]
[349675331,1737369047680,-37865.69311491,0.00020883,2]
[349675332,1737369047690,-1954.32870542,0.00020883,2]
[349675333,1737369047699,-2324.6148033,0.00020885,2]
[349675334,1737369047708,-2745.62856594,0.00020885,2]
[349675335,1737369047717,-549.12571319,0.00020886,2]
[349675336,1737369047727,-168.98,0.00020886,2]
[349675337,1737369047736,-200.0,0.00020887,2]
[349675338,1737369047745,-279.56024052,0.00020888,2]
[349675339,1737369047754,-3548.88226239,0.00020888,2]
[349675340,1737369047763,-150.0,0.00020888,2]
[349675341,1737369047773,-11214.57566427,0.00020888,2]
[349675342,1737369047782,-201.82471964,0.00020889,2]
[349675343,1737369047792,-201.82471964,0.0002089,2]
[349675344,1737369047801,-279.56024052,0.0002089,2]
[349675345,1737369047811,-1238.03599969,0.00020891,2]
[349675346,1737369047820,-150.0,0.00020891,2]
[349675347,1737369047829,-310.45502609,0.00020893,2]
[349675348,1737369047838,-549.12571319,0.00020893,2]
[349675349,1737369047847,-1000.0,0.00020895,2]
[349675350,1737369047856,-1000.0,0.00020895,2]
[349675351,1737369047865,-1000.0,0.00020895,2]
[349675352,1737369047874,-1000.0,0.00020895,2]
[349675353,1737369047883,-1000.0,0.00020895,2]
[349675354,1737369047892,-1000.0,0.00020895,2]
[349675355,1737369047901,-1000.0,0.00020895,2]
[349675356,1737369047911,-1000.0,0.00020895,2]
[349675357,1737369047921,-1000.0,0.00020895,2]
[349675358,1737369047931,-438.867,0.00020895,2]
[349675359,1737369047944,-396.63325434,0.00020895,2]
[349675360,1737369047953,-313.37092882,0.00020895,2]
[349675361,1737369047963,-369.83128676,0.00020896,2]
[349675362,1737369047972,-1107.20131181,0.00020898,2]
[349675363,1737369047982,-1000.0,0.00020899,2]
[349675364,1737369047991,-1000.0,0.00020899,2]
[349675365,1737369048001,-245662.82110763,0.000209,4]
[349675366,1737369048011,-1340.264107,0.000209,2]
[349675367,1737369048020,-166.59127886,0.000209,2]
[349675368,1737369048029,-3134.0,0.000209,2]
[349675369,1737369048039,-151.0,0.000209,2]
[349675370,1737369048048,-164.7176372,0.000209,2]
[349675371,1737369048057,-151.0,0.000209,2]
[349675372,1737369048067,-151.0,0.000209,2]
[349675373,1737369048076,-151.0,0.000209,2]
[349675374,1737369048086,-151.0,0.000209,2]
[349675375,1737369048095,-151.0,0.000209,2]
[349675376,1737369048104,-151.0,0.000209,2]
[349675377,1737369048113,-151.0,0.000209,2]
[349675378,1737369048122,-428.329931,0.000209,2]
[349675379,1737369048131,-428.329931,0.000209,2]
[349675380,1737369048140,-226.658262,0.000209,2]
[349675381,1737369048149,-226.658262,0.000209,2]
[349675382,1737369048158,-151.0,0.000209,2]
[349675383,1737369048167,-228.984806,0.000209,2]
[349675384,1737369048178,-151.0,0.000209,2]
[349675385,1737369048189,-477.956817,0.000209,2]
[349675386,1737369048199,-977.35596976,0.000209,2]
[349675387,1737369048209,-477.956817,0.000209,2]
[349675388,1737369048219,-151.0,0.000209,2]
[349675389,1737369048228,-151.0,0.000209,2]
[349675390,1737369048239,-822.913357,0.000209,2]
[349675391,1737369048249,-151.0,0.000209,2]
[349675392,1737369048259,-4391.0518,0.000209,30]
[349675393,1737369048268,-150.0,0.000209,2]
[349675394,1737369048277,-222.900336,0.000209,2]
[349675395,1737369048287,-279.56024052,0.00020901,2]
[349675396,1737369048297,-201.82471964,0.00020906,2]
[349675397,1737369048308,-304.88944858,0.00020906,2]
[349675398,1737369048317,-1980.62439986,0.00020906,2]
[349675399,1737369048327,-456.10525869,0.00020906,2]
[349675400,1737369048336,-37865.69311491,0.00020908,2]
[349675401,1737369048345,-20064.95957916,0.00020909,2]
[349675402,1737369048355,-1000.0,0.00020909,2]
[349675403,1737369048364,-304.88944858,0.0002091,2]
[349675404,1737369048374,-479.91455729,0.00020911,2]
[349675405,1737369048383,-207.48765588,0.00020912,2]
[349675406,1737369048392,-313.37092882,0.00020912,2]
[349675407,1737369048402,-549.12571319,0.00020913,2]
[349675408,1737369048411,-479.91455729,0.00020913,2]
[349675409,1737369048421,-396.63325434,0.00020914,2]
[349675410,1737369048431,-1238.03599969,0.00020915,2]
[349675411,1737369048446,-150.66023569,0.00020915,2]
[349675412,1737369048456,-207.48765588,0.00020917,2]
[349675413,1737369048466,-67139.45850816,0.00020917,2]
[349675414,1737369048475,-568.07150265,0.00020919,2]
[349675415,1737369048486,-201.82471964,0.0002092,2]
[349675416,1737369048496,-1000.0,0.0002092,2]
[349675417,1737369048506,-568.07150265,0.0002092,2]
[349675418,1737369048515,-2324.6148033,0.0002092,2]
[349675419,1737369048526,-11214.57566427,0.0002092,2]
[349675420,1737369048535,-20064.95957916,0.00020921,2]
[349675421,1737369048544,-2324.6148033,0.00020921,2]
[349675422,1737369048554,-2196.50285275,0.00020922,2]
[349675423,1737369048563,-304.88944858,0.00020922,2]
[349675424,1737369048573,-479.91455729,0.00020923,2]
[349675425,1737369048583,-200.0,0.00020925,2]
[349675426,1737369048592,-1107.20131181,0.00020926,2]
[349675427,1737369048602,-2745.62856594,0.00020927,2]
[349675428,1737369048611,-279.56024052,0.00020928,2]
[349675429,1737369048622,-1238.03599969,0.00020928,2]
[349675430,1737369048632,-1980.62439986,0.00020928,2]
[349675431,1737369048641,-20064.95957916,0.00020928,2]
[349675432,1737369048650,-549.12571319,0.00020929,2]
[349675433,1737369048659,-11101.62668313,0.0002093,2]
[349675434,1737369048669,-264.30585827,0.00020934,2]
[349675435,1737369048679,-150.0,0.00020935,2]
[349675436,1737369048692,-163.5675805,0.00020936,10]
[349675437,1737369048702,-150.0,0.00020936,2]
[349675438,1737369048711,-934.97264779,0.00020936,2]
[349675439,1737369048720,-456.10525869,0.00020938,2]
[349675440,1737369048730,-2745.62856594,0.00020938,2]
[349675441,1737369048740,-150.0,0.00020938,2]
[349675442,1737369048749,-1954.32870542,0.00020941,2]
[349675443,1737369048759,-934.97264779,0.00020941,2]
[349675444,1737369048769,-1000.0,0.00020943,2]
[349675445,1737369048778,-11101.62668313,0.00020944,2]
[349675447,1737369048788,-1338.34440375,0.00020946,2]
[349675448,1737369048797,-549.12571319,0.00020946,2]
[349675449,1737369048807,-150.0,0.00020946,2]
[349675450,1737369048817,-150.0,0.00020946,2]
[349675451,1737369048826,-369.83128676,0.00020947,2]
[349675452,1737369048835,-1107.20131181,0.00020947,2]
[349675453,1737369048845,-227.22860106,0.00020948,2]
[349675454,1737369048854,-200.0,0.00020948,2]
[349675455,1737369048866,-934.97264779,0.00020948,2]
[349675456,1737369048876,-150.0,0.00020949,2]
[349675457,1737369048886,-3098.96816625,0.00020954,2]
[349675458,1737369048896,-150.0,0.00020954,2]
[349675459,1737369048906,-150.0,0.00020955,2]
[349675460,1737369048915,-150.0,0.00020957,2]
[349675461,1737369048926,-818.68549905,0.00020966,2]
[349675462,1737369048938,-166.73196652,0.00020973,2]
[349675463,1737369048948,-323.5489692,0.00020973,2]
[349675464,1737369048957,-206.64425441,0.00020973,2]
[349675465,1737369048967,-500.58072799,0.00020973,2]
[349675466,1737369048976,-150.0,0.00020977,2]
[349675467,1737369048986,-150.0,0.00020985,2]
[349675468,1737369048995,-5229.9429239,0.00020987,2]
[349675469,1737369049005,-179.43852401,0.0002099,2]
[349675470,1737369049014,-310.45502609,0.00020994,2]
[349675471,1737369049024,-150.0,0.00020999,2]
[349675472,1737369049033,-2287.0,0.00021,2]
[349675473,1737369049043,-130790.8497788,0.00021,2]
[349675474,1737369049052,-1000.0,0.00021,3]
[349675475,1737369049061,-709985.05,0.00021,15]
[349675476,1737369049071,-374.7943116,0.00021,2]
[349675477,1737369049080,-576.4827343,0.00021,2]
[349675478,1737369049090,-46196.56123165,0.00021,2]
[349675479,1737369049099,-151.0,0.00021,2]
[349675480,1737369049108,-151.0,0.00021,2]
[349675481,1737369049117,-151.0,0.00021,2]
[349675482,1737369049127,-151.0,0.00021,2]
[349675483,1737369049136,-151.0,0.00021,2]
[349675484,1737369049145,-151.0,0.00021,2]
[349675485,1737369049154,-219.470582,0.00021,2]
[349675486,1737369049162,-151.0,0.00021,2]
[349675487,1737369049172,-151.0,0.00021,2]
[349675488,1737369049181,-151.0,0.00021,2]
[349675489,1737369049193,-195.981711,0.00021,2]
[349675490,1737369049202,-151.0,0.00021,2]
[349675491,1737369049212,-151.0,0.00021,2]
[349675492,1737369049221,-151.0,0.00021,2]
[349675493,1737369049231,-151.0,0.00021,2]
[349675494,1737369049240,-428.329931,0.00021,2]
[349675495,1737369049249,-428.329931,0.00021,2]
[349675496,1737369049259,-428.329931,0.00021,2]
[349675497,1737369049268,-428.329931,0.00021,2]
[349675498,1737369049277,-226.658262,0.00021,2]
[349675499,1737369049287,-226.658262,0.00021,2]
[349675500,1737369049296,-226.658262,0.00021,2]
[349675501,1737369049305,-226.658262,0.00021,2]
[349675502,1737369049314,-311125.8505268,0.00021,2]
[349675503,1737369049323,-151.0,0.00021,2]
[349675504,1737369049332,-151.0,0.00021,2]
[349675505,1737369049341,-144222.16237488,0.00021,3]
[349675506,1737369049350,-477.956817,0.00021,2]
[349675507,1737369049359,-477.956817,0.00021,2]
[349675508,1737369049369,-477.956817,0.00021,2]
[349675509,1737369049378,-477.956817,0.00021,2]
[349675510,1737369049387,-477.956817,0.00021,2]
[349675511,1737369049396,-477.956817,0.00021,2]
[349675512,1737369049405,-151.0,0.00021,2]
[349675513,1737369049414,-151.0,0.00021,2]
[349675514,1737369049423,-151.0,0.00021,2]
[349675515,1737369049432,-151.0,0.00021,2]
[349675516,1737369049444,-151.0,0.00021,2]
[349675517,1737369049454,-151.0,0.00021,2]
[349675518,1737369049464,-151.0,0.00021,2]
[349675519,1737369049473,-822.913357,0.00021,2]
[349675520,1737369049483,-822.913357,0.00021,2]
[349675521,1737369049492,-822.913357,0.00021,2]
[349675522,1737369049501,-822.913357,0.00021,2]
[349675523,1737369049510,-9708.73492988,0.00021,2]
[349675524,1737369049520,-151.0,0.00021,2]
[349675525,1737369049531,-40393.43280063,0.00021,2]
[349675526,1737369049542,-151.0,0.00021,2]
[349675527,1737369049552,-264.30585827,0.00021003,2]
[349675528,1737369049562,-1916.6147006,0.00021009,2]
[349675529,1737369049571,-151.54548789,0.00021032,2]
[349675530,1737369049581,-1601.77,0.00021041,2]
[349675531,1737369049590,-164.71763715,0.00021067,2]
[349675532,1737369049599,-264.30585827,0.00021072,2]
[349675533,1737369049609,-205.0,0.0002109,2]
[349675534,1737369049618,-310.45502609,0.00021094,2]
[349675535,1737369049627,-733.0,0.000211,2]
[349675536,1737369049636,-1000.0,0.000211,2]
[349675537,1737369049645,-925.0,0.000211,2]
[349675538,1737369049655,-3098.96816625,0.00021112,2]
[349675539,1737369049664,-772.50425751,0.00021121,2]
[349675540,1737369049673,-151.0,0.00021128,2]
[349675541,1737369049682,-151.0,0.00021128,2]
[349675542,1737369049694,-151.0,0.00021128,2]
[349675543,1737369049703,-151.0,0.00021128,2]
[349675544,1737369049712,-151.0,0.00021128,2]
[349675545,1737369049721,-151.0,0.00021128,2]
[349675546,1737369049730,-428.329931,0.00021128,2]
[349675547,1737369049739,-428.329931,0.00021128,2]
[349675548,1737369049748,-226.658262,0.00021128,2]
[349675549,1737369049757,-226.658262,0.00021128,2]
[349675550,1737369049766,-500.0,0.00021129,2]
[349675551,1737369049775,-500.0,0.00021129,2]
[349675552,1737369049784,-500.0,0.00021129,2]
[349675553,1737369049793,-500.0,0.00021129,2]
[349675554,1737369049802,-500.0,0.00021129,2]
[349675555,1737369049812,-569.45404149,0.00021129,2]
[349675556,1737369049820,-575.37,0.00021129,2]
[349675557,1737369049830,-566.09,0.00021129,2]
[349675558,1737369049839,-500.0,0.00021129,2]
[349675559,1737369049848,-511.09,0.00021129,2]
[349675560,1737369049857,-500.0,0.00021129,2]
[349675561,1737369049866,-500.0,0.00021129,2]
[349675562,1737369049876,-500.0,0.00021129,2]
[349675563,1737369049885,-544.61373762,0.00021129,2]
[349675564,1737369049894,-736.69,0.00021129,2]
[349675565,1737369049902,-500.0,0.00021129,2]
[349675566,1737369049912,-500.0,0.00021129,2]
[349675567,1737369049921,-500.0,0.00021129,2]
[349675568,1737369049930,-650.649365,0.00021129,2]
[349675569,1737369049941,-500.0,0.00021129,2]
[349675570,1737369049950,-491.14343016,0.00021129,2]
[349675571,1737369049959,-500.0,0.00021129,2]
[349675572,1737369049968,-500.0,0.00021129,2]
[349675573,1737369049978,-500.0,0.00021129,2]
[349675574,1737369049988,-500.0,0.00021129,2]
[349675575,1737369049997,-422.493309,0.00021129,2]
[349675576,1737369050006,-605.46,0.00021129,2]
[349675577,1737369050015,-500.0,0.00021129,2]
[349675578,1737369050025,-500.0,0.00021129,2]
[349675579,1737369050034,-576.59,0.00021129,2]
[349675580,1737369050043,-691.59,0.00021129,2]
[349675581,1737369050052,-683.64,0.00021129,2]
[349675582,1737369050061,-500.0,0.00021129,2]
[349675583,1737369050071,-500.0,0.00021129,2]
[349675584,1737369050080,-690.83,0.00021129,2]
[349675585,1737369050205,-500.0,0.00021129,2]
[349675586,1737369050214,-500.0,0.00021129,2]
[349675587,1737369050223,-500.0,0.00021129,2]
[349675588,1737369050234,-500.0,0.00021129,2]
[349675589,1737369050244,-581.3,0.00021129,2]
[349675590,1737369050253,-500.0,0.00021129,2]
[349675591,1737369050263,-500.0,0.00021129,2]
[349675592,1737369050274,-810.27,0.00021129,2]
[349675593,1737369050283,-151.0,0.00021129,2]
[349675594,1737369050292,-500.0,0.00021129,2]
[349675595,1737369050301,-521.05,0.00021129,2]
[349675596,1737369050310,-500.0,0.00021129,2]
[349675597,1737369050320,-500.0,0.00021129,2]
[349675598,1737369050329,-844.03,0.00021129,2]
[349675599,1737369050338,-579.46,0.00021129,2]
[349675600,1737369050348,-500.0,0.00021129,2]
[349675601,1737369050358,-1179.4,0.00021129,2]
[349675602,1737369050367,-500.0,0.00021129,2]
[349675603,1737369050376,-500.0,0.00021129,2]
[349675604,1737369050385,-3363.53,0.00021129,2]
[349675605,1737369050394,-477.956817,0.00021129,2]
[349675606,1737369050404,-937.27,0.00021129,2]
[349675607,1737369050413,-500.0,0.00021129,2]
[349675608,1737369050422,-477.956817,0.00021129,2]
[349675609,1737369050431,-1121.74,0.00021129,2]
[349675610,1737369050443,-500.0,0.00021129,2]
[349675611,1737369050454,-227.00929242,0.00021129,2]
[349675612,1737369050463,-151.0,0.00021129,2]
[349675613,1737369050472,-787.57,0.00021129,2]
[349675614,1737369050483,-1241.44,0.00021129,2]
[349675615,1737369050492,-770.31,0.00021129,2]
[349675616,1737369050501,-500.0,0.00021129,2]
[349675617,1737369050510,-948.86,0.00021129,2]
[349675618,1737369050521,-543.14,0.00021129,2]
[349675619,1737369050531,-500.0,0.00021129,2]
[349675620,1737369050539,-500.0,0.00021129,2]
[349675621,1737369050548,-674.31,0.00021129,2]
[349675622,1737369050558,-185.564205,0.00021129,2]
[349675623,1737369050567,-500.0,0.00021129,2]
[349675624,1737369050577,-500.0,0.00021129,2]
[349675625,1737369050586,-620.23,0.00021129,2]
[349675626,1737369050597,-500.0,0.00021129,2]
[349675627,1737369050606,-1156.94,0.00021129,2]
[349675628,1737369050615,-1044.78,0.00021129,2]
[349675629,1737369050625,-500.0,0.00021129,2]
[349675630,1737369050636,-822.913357,0.00021129,2]
[349675631,1737369050646,-962.64,0.00021129,2]
[349675632,1737369050655,-1744.31,0.00021129,2]
[349675633,1737369050664,-866.07,0.00021129,2]
[349675634,1737369050673,-1965.63,0.00021129,2]
[349675635,1737369050683,-500.0,0.00021129,2]
[349675636,1737369050694,-163.329348,0.00021129,2]
[349675637,1737369050703,-1360.03,0.00021129,2]
[349675638,1737369050712,-500.0,0.00021129,2]
[349675639,1737369050721,-706.83,0.00021129,2]
[349675640,1737369050731,-762.83,0.00021129,2]
[349675641,1737369050740,-1261.68,0.00021129,2]
[349675642,1737369050749,-1006.62,0.00021129,2]
[349675643,1737369050759,-601.42,0.00021129,2]
[349675644,1737369050767,-3021.11,0.00021129,2]
[349675645,1737369050777,-500.0,0.00021129,2]
[349675646,1737369050786,-1081.22,0.00021129,2]
[349675647,1737369050795,-500.0,0.00021129,2]
[349675648,1737369050805,-344.22,0.00021129,2]
[349675649,1737369050814,-500.0,0.00021129,2]
[349675650,1737369050823,-816.24,0.00021129,2]
[349675651,1737369050832,-1178.57,0.00021129,2]
[349675652,1737369050841,-500.0,0.00021129,2]
[349675653,1737369050850,-716.58,0.00021129,2]
[349675654,1737369050859,-927.39,0.00021129,2]
[349675655,1737369050868,-500.0,0.00021129,2]
[349675656,1737369050878,-1035.41,0.00021129,2]
[349675657,1737369050888,-500.0,0.00021129,2]
[349675658,1737369050897,-988.29,0.00021129,2]
[349675659,1737369050907,-1808.1,0.00021129,2]
[349675660,1737369050916,-1293.09,0.00021129,2]
[349675661,1737369050926,-677.4,0.00021129,2]
[349675662,1737369050937,-974.68,0.00021129,2]
[349675663,1737369050947,-1437.3,0.00021129,2]
[349675664,1737369050956,-2018.96,0.00021129,2]
[349675665,1737369050966,-500.0,0.00021129,2]
[349675666,1737369050975,-1443.5,0.00021129,2]
[349675667,1737369050985,-500.0,0.00021129,2]
[349675668,1737369050995,-790.05,0.00021129,2]
[349675669,1737369051004,-4625.34,0.00021129,2]
[349675670,1737369051013,-1033.28,0.00021129,2]
[349675671,1737369051023,-795.6,0.00021129,2]
[349675672,1737369051031,-500.0,0.00021129,2]
[349675673,1737369051040,-1377.1,0.00021129,2]
[349675674,1737369051049,-1162.22,0.00021129,2]
[349675675,1737369051059,-500.0,0.00021129,2]
[349675676,1737369051068,-500.11,0.00021129,2]
[349675677,1737369051077,-500.0,0.00021129,2]
[349675678,1737369051086,-2554.85,0.00021129,2]
[349675679,1737369051095,-999.36,0.00021129,2]
[349675680,1737369051105,-500.0,0.00021129,2]
[349675681,1737369051114,-529.72,0.00021129,2]
[349675682,1737369051123,-583.97,0.00021129,2]
[349675683,1737369051132,-3437.23,0.00021129,2]
[349675684,1737369051141,-860.07,0.00021129,2]
[349675685,1737369051151,-500.0,0.00021129,2]
[349675686,1737369051159,-500.0,0.00021129,2]
[349675687,1737369051168,-614.64,0.00021129,2]
[349675688,1737369051177,-2333.81,0.00021129,2]
[349675689,1737369051187,-2204.6,0.00021129,2]
[349675690,1737369051196,-500.0,0.00021129,2]
[349675691,1737369051204,-500.0,0.00021129,2]
[349675692,1737369051213,-500.0,0.00021129,2]
[349675693,1737369051222,-1115.38,0.00021129,2]
[349675694,1737369051231,-500.0,0.0002113,2]
[349675695,1737369051240,-500.0,0.0002113,2]
[349675696,1737369051249,-500.0,0.0002113,2]
[349675697,1737369051258,-173.652634,0.0002113,2]
[349675698,1737369051267,-500.0,0.0002113,2]
[349675699,1737369051276,-612.75,0.0002113,2]
[349675700,1737369051285,-500.0,0.0002113,2]
[349675701,1737369051294,-500.0,0.0002113,2]
[349675702,1737369051303,-500.0,0.0002113,2]
[349675703,1737369051312,-500.0,0.0002113,2]
[349675704,1737369051321,-500.0,0.0002113,2]
[349675705,1737369051330,-500.0,0.0002113,2]
[349675706,1737369051338,-508.15,0.0002113,2]